bitfinex-derivatives/quotes_SOLF0:USTF0_20241208
["timestamp","ask_amount","ask_price","bid_price","bid_amount"]
[1733693181734,2.1247,235.21,235.17,3.02808909]
[1733693181935,2.1247,235.21,235.16,6.62492821]
[1733693182134,2.1247,235.21,235.17,3.02808909]
[1733693182333,2.1247,235.21,235.16,6.62492821]
[1733693182538,2.1247,235.21,235.17,3.02802016]
[1733693182742,2.1247,235.21,235.16,6.62492821]
[1733693182934,2.1247,235.21,235.17,3.02802016]
[1733693183140,2.1247,235.21,235.16,6.62492821]
[1733693183439,2.1247,235.21,235.17,3.02795794]
[1733693183639,2.1247,235.21,235.16,6.62492821]
[1733693183944,2.1247,235.21,235.17,3.02799917]
[1733693184143,2.1247,235.21,235.16,6.62492821]
[1733693184441,2.1247,235.21,235.17,3.02797852]
[1733693184636,2.1247,235.21,235.16,6.62492821]
[1733693184842,2.1247,235.21,235.17,3.02796686]
[1733693185039,2.1247,235.21,235.16,6.62492821]
[1733693185238,2.1247,235.21,235.17,3.02795623]
[1733693185441,2.1247,235.21,235.16,6.62492821]
[1733693185738,2.1247,235.21,235.17,3.02793876]
[1733693185940,2.1247,235.21,235.16,6.62492821]
[1733693186142,2.1247,235.21,235.17,3.02794939]
[1733693186337,2.1247,235.21,235.16,6.62492821]
[1733693186543,2.1247,235.21,235.17,3.02792761]
[1733693186742,2.1247,235.21,235.16,6.62492821]
[1733693186943,2.1247,235.21,235.17,3.02792762]
[1733693187243,2.1247,235.21,235.16,6.62492821]
[1733693187442,2.1247,235.21,235.17,3.02793889]
[1733693187640,2.1247,235.21,235.16,6.62492821]
[1733693187841,2.1247,235.21,235.17,3.02798256]
[1733693188042,2.1247,235.21,235.16,6.62492821]
[1733693190641,1.82,235.22,235.16,8.74992821]
[1733693190943,6.62492821,235.24,235.18,6.62492821]
[1733693191340,8.44492821,235.24,235.18,6.62492821]
[1733693192742,10.56922821,235.24,235.18,8.74972821]
[1733693193044,3.9443,235.24,235.18,8.74972821]
[1733693195247,3.9443,235.24,235.19,3.02790498]
[1733693195450,3.9443,235.24,235.2,3.02790498]
[1733693195747,3.9443,235.24,235.18,8.74972821]
[1733693196049,3.9443,235.24,235.19,3.02791756]
[1733693196350,3.9443,235.24,235.2,3.02791756]
[1733693196651,1.6914,235.32,235.22,6.62492821]
[1733693196852,2.1243,235.25,235.22,6.62492821]
[1733693197046,6.62492821,235.25,235.2,6.62492821]
[1733693198753,2.1243,235.24,235.2,6.62492821]
[1733693202757,2.1243,235.24,235.21,3.02761378]
[1733693202955,2.1243,235.24,235.2,6.62492821]
[1733693203156,2.1243,235.24,235.21,3.02761903]
[1733693203355,2.1243,235.24,235.2,6.62492821]
[1733693203557,2.1243,235.24,235.21,3.02757526]
[1733693203760,2.1243,235.24,235.2,6.62492821]
[1733693203952,2.1243,235.24,235.21,3.0275427]
[1733693204150,2.1243,235.24,235.2,6.62492821]
[1733693204355,2.1243,235.24,235.21,3.02748622]
[1733693204550,2.1243,235.24,235.2,6.62492821]
[1733693204755,2.1243,235.24,235.21,3.02742257]
[1733693204954,2.1243,235.24,235.2,6.62492821]
[1733693205157,2.1243,235.24,235.21,3.02742257]
[1733693205351,2.1243,235.24,235.2,6.62492821]
[1733693205556,2.1243,235.24,235.18,2.1248]
[1733693205755,2.1243,235.24,235.19,9.65240343]
[1733693205955,2.1243,235.24,235.2,3.02747522]
[1733693206156,2.1243,235.24,235.19,6.62492821]
[1733693206361,2.1243,235.24,235.2,3.02745429]
[1733693206556,2.1243,235.24,235.19,6.62492821]
[1733693207056,2.1243,235.24,235.2,3.02740243]
[1733693207258,2.1243,235.24,235.19,6.62492821]
[1733693207459,2.1243,235.24,235.2,3.02751907]
[1733693207661,2.1243,235.24,235.19,6.62492821]
[1733693207860,2.1243,235.24,235.2,3.02747233]
[1733693208159,2.1243,235.24,235.21,3.02739733]
[1733693208361,2.1243,235.24,235.19,6.62492821]
[1733693208562,2.1243,235.24,235.2,3.02743485]
[1733693208767,2.1243,235.24,235.19,6.62492821]
[1733693208965,2.1243,235.24,235.2,3.02743676]
[1733693209160,2.1243,235.24,235.19,6.62492821]
[1733693209356,2.1243,235.24,235.2,3.02745273]
[1733693209559,2.1243,235.24,235.19,6.62492821]
[1733693209755,2.1243,235.24,235.2,3.0274203]
[1733693209957,2.1243,235.24,235.19,6.62492821]
[1733693210155,2.1243,235.24,235.2,3.02744964]
[1733693210360,2.1243,235.24,235.19,6.62492821]
[1733693213562,2.1243,235.24,235.2,3.02731111]
[1733693213762,2.1243,235.24,235.19,6.62492821]
[1733693214161,2.1243,235.24,235.2,3.02726526]
[1733693214361,2.1243,235.24,235.19,6.62492821]
[1733693214560,2.1243,235.24,235.2,3.02715805]
[1733693214765,2.1243,235.24,235.19,6.62492821]
[1733693214955,2.1243,235.24,235.2,3.02715447]
[1733693215159,2.1243,235.24,235.19,6.62492821]
[1733693215362,2.1243,235.24,235.2,3.02702498]
[1733693215564,2.1243,235.24,235.19,6.62492821]
[1733693215762,2.1243,235.24,235.2,3.02703678]
[1733693216062,2.1243,235.24,235.19,6.62492821]
[1733693216264,2.1243,235.24,235.2,3.02702609]
[1733693216562,2.1243,235.24,235.19,6.62492821]
[1733693216762,2.1243,235.24,235.2,3.02725122]
[1733693216964,2.1243,235.24,235.19,6.62492821]
[1733693217165,2.1243,235.24,235.2,3.02726191]
[1733693217465,2.1243,235.24,235.21,3.02754097]
[1733693217660,2.1243,235.24,235.19,6.62492821]
[1733693218366,2.1243,235.24,235.2,3.02752781]
[1733693218568,2.1243,235.24,235.21,3.02752781]
[1733693218766,2.1243,235.24,235.22,3.02752781]
[1733693219067,2.1243,235.24,235.19,6.62492821]
[1733693219268,2.1243,235.24,235.2,7.87273388]
[1733693219471,2.1243,235.24,235.21,3.02797457]
[1733693219668,2.1243,235.24,235.22,3.02797457]
[1733693219869,2.1243,235.24,235.19,6.62492821]
[1733693220070,2.1243,235.24,235.2,7.87276167]
[1733693220270,6.62492821,235.25,235.21,3.02798526]
[1733693220469,8.74912821,235.25,235.22,3.02798526]
[1733693220670,8.74912821,235.25,235.19,6.62492821]
[1733693220874,1.82,235.26,235.21,6.62492821]
[1733693221067,1.82,235.27,235.22,3.02820122]
[1733693221265,1.82,235.27,235.21,6.62492821]
[1733693221462,1.82,235.27,235.22,3.02828809]
[1733693221670,1.82,235.27,235.21,6.62492821]
[1733693221871,1.82,235.27,235.22,3.02834152]
[1733693222170,1.82,235.27,235.21,6.62492821]
[1733693222372,1.82,235.27,235.22,3.02847811]
[1733693222567,2.1242,235.25,235.21,6.62492821]
[1733693222765,2.1242,235.25,235.22,3.02846741]
[1733693222969,2.1242,235.25,235.21,6.62492821]
[1733693223169,2.1242,235.25,235.22,3.02847743]
[1733693223367,2.1242,235.25,235.21,6.62492821]
[1733693223771,2.1242,235.25,235.22,3.02871687]
[1733693224073,2.1242,235.25,235.21,6.62492821]
[1733693224270,2.1242,235.25,235.22,3.02870618]
[1733693224571,2.1242,235.25,235.21,6.62492821]
[1733693224769,2.1242,235.25,235.22,3.02875077]
[1733693224969,2.1242,235.25,235.21,6.62492821]
[1733693225169,2.1242,235.25,235.22,3.02875077]
[1733693225370,2.1242,235.25,235.21,6.62492821]
[1733693226973,2.1243,235.24,235.19,6.62492821]
[1733693227179,2.1243,235.24,235.2,3.02903321]
[1733693227370,2.1243,235.24,235.21,3.02903321]
[1733693227575,2.1243,235.24,235.19,6.62492821]
[1733693227775,2.1243,235.24,235.2,3.02923919]
[1733693227975,2.1243,235.24,235.21,3.02923919]
[1733693228173,2.1243,235.24,235.19,6.62492821]
[1733693228372,2.1243,235.24,235.2,3.02940243]
[1733693228577,2.1243,235.24,235.21,3.02940243]
[1733693228874,2.1243,235.24,235.19,6.62492821]
[1733693229072,2.1243,235.24,235.2,3.0294112]
[1733693229272,2.1243,235.24,235.21,3.0294112]
[1733693229574,2.1243,235.24,235.19,6.62492821]
[1733693229878,2.1243,235.24,235.2,3.02969046]
[1733693230174,2.1243,235.24,235.19,6.62492821]
[1733693230175,2.1243,235.24,235.21,3.02969046]
[1733693230375,2.1243,235.24,235.19,6.62492821]
[1733693230576,2.1243,235.24,235.2,3.02999576]
[1733693230970,2.1243,235.24,235.21,3.02999576]
[1733693231167,2.1243,235.24,235.19,6.62492821]
[1733693231376,2.1243,235.24,235.2,3.03038741]
[1733693231677,2.1243,235.24,235.21,3.03038741]
[1733693231878,2.1243,235.24,235.19,6.62492821]
[1733693232177,2.1243,235.24,235.2,3.03039811]
[1733693232370,2.1243,235.24,235.21,3.03039811]
[1733693232573,2.1243,235.24,235.19,6.62492821]
[1733693232770,2.1243,235.24,235.2,7.88012494]
[1733693232971,2.1243,235.24,235.21,7.88012494]
[1733693233172,2.1243,235.24,235.22,3.03081728]
[1733693233480,2.1243,235.24,235.23,3.03081728]
[1733693233879,1.82,235.27,235.23,3.03081728]
[1733693234077,8.44492821,235.27,235.19,8.74962821]
[1733693234377,8.44492821,235.27,235.2,7.88298322]
[1733693234578,8.44492821,235.27,235.21,7.88298322]
[1733693234779,8.44492821,235.27,235.22,3.03191662]
[1733693234980,8.44492821,235.27,235.23,3.03191662]
[1733693235179,8.44492821,235.27,235.21,6.62492821]
[1733693235375,8.44492821,235.27,235.22,3.03256088]
[1733693235576,2.1243,235.25,235.23,3.03256088]
[1733693235776,2.1243,235.25,235.21,6.62492821]
[1733693235982,2.1243,235.25,235.22,3.03256525]
[1733693236178,2.1243,235.25,235.23,3.03256525]
[1733693236483,2.1243,235.25,235.21,6.62492821]
[1733693236683,2.1243,235.25,235.22,3.03266892]
[1733693236885,2.1243,235.25,235.23,3.03266892]
[1733693237084,2.1243,235.25,235.21,6.62492821]
[1733693237280,2.1243,235.25,235.22,3.03275305]
[1733693237481,2.1243,235.25,235.23,3.03275305]
[1733693237682,2.1243,235.25,235.21,6.62492821]
[1733693237881,2.1243,235.25,235.22,3.03276169]
[1733693238090,2.1243,235.25,235.23,3.03276169]
[1733693238290,2.1243,235.25,235.24,3.0328379]
[1733693239288,2.1243,235.25,235.21,6.62492821]
[1733693239491,2.1243,235.25,235.22,3.03296063]
[1733693239690,2.1243,235.25,235.23,3.03296063]
[1733693239985,2.1243,235.25,235.21,6.62492821]
[1733693240185,2.1243,235.25,235.22,3.03296063]
[1733693240493,24.54899187,235.33,235.23,3.03296063]
[1733693240691,6.62492821,235.28,235.24,3.03296063]
[1733693240990,1.82,235.27,235.21,6.62492821]
[1733693241190,1.82,235.27,235.22,3.03308407]
[1733693241390,1.82,235.27,235.21,6.62492821]
[1733693241691,2.1242,235.26,235.22,3.03324546]
[1733693241892,2.1242,235.26,235.21,6.62492821]
[1733693242190,1.82,235.27,235.22,3.03325852]
[1733693242390,6.62492821,235.28,235.21,6.62492821]
[1733693242391,8.44492821,235.28,235.21,6.62492821]
[1733693242592,8.44492821,235.28,235.22,3.03322416]
[1733693242793,2.1243,235.25,235.21,6.62492821]
[1733693242991,2.1243,235.25,235.22,3.03324325]
[1733693243191,2.1243,235.25,235.21,6.62492821]
[1733693243388,2.1243,235.25,235.22,3.03330021]
[1733693243689,2.1243,235.25,235.21,6.62492821]
[1733693243889,2.1243,235.25,235.22,3.03327979]
[1733693244090,2.1243,235.25,235.21,6.62492821]
[1733693244291,2.1243,235.25,235.22,3.03331236]
[1733693244490,2.1243,235.25,235.21,6.62492821]
[1733693244691,2.1243,235.25,235.22,3.03330833]
[1733693244990,2.1243,235.25,235.21,6.62492821]
[1733693245191,2.1243,235.25,235.22,3.03330833]
[1733693245393,2.1243,235.25,235.21,6.62492821]
[1733693245594,2.1243,235.25,235.22,3.03333612]
[1733693245891,2.1243,235.25,235.21,6.62492821]
[1733693246193,2.1243,235.25,235.22,3.03333612]
[1733693246395,2.1243,235.25,235.21,6.62492821]
[1733693246594,2.1243,235.25,235.22,3.03338752]
[1733693246793,2.1243,235.25,235.21,6.62492821]
[1733693246989,2.1243,235.25,235.22,3.03337681]
[1733693247190,2.1243,235.25,235.21,6.62492821]
[1733693247495,2.1243,235.25,235.22,3.03342232]
[1733693247691,2.1243,235.25,235.21,6.62492821]
[1733693248088,2.1243,235.25,235.22,7.88689803]
[1733693248295,2.1243,235.25,235.23,3.03342232]
[1733693248494,2.1243,235.25,235.24,3.03342232]
[1733693250794,1.82,235.28,235.24,3.03342232]
[1733693250994,2.1242,235.26,235.23,6.62492821]
[1733693251200,2.1242,235.26,235.24,3.03341475]
[1733693251402,2.1242,235.26,235.23,6.62492821]
[1733693251697,2.1242,235.26,235.24,3.03346937]
[1733693251993,2.1242,235.26,235.23,6.62492821]
[1733693252199,2.1242,235.26,235.24,3.03345866]
[1733693252498,1.82,235.28,235.23,6.62492821]
[1733693252499,2.1241,235.27,235.23,6.62492821]
[1733693252699,2.1241,235.27,235.24,3.03365002]
[1733693252899,2.1241,235.27,235.23,6.62492821]
[1733693253200,2.1241,235.27,235.24,3.03365097]
[1733693253497,2.1241,235.27,235.23,6.62492821]
[1733693253702,2.1241,235.27,235.24,3.03366136]
[1733693253895,2.1241,235.27,235.23,6.62492821]
[1733693254094,2.1241,235.27,235.24,3.03366136]
[1733693254303,2.1241,235.27,235.23,6.62492821]
[1733693254499,2.1241,235.27,235.24,3.03378815]
[1733693254802,1.82,235.28,235.23,6.62492821]
[1733693254803,4.2438,235.52,235.25,6.62492821]
[1733693255099,6.62492821,235.41,235.34,6.62492821]
[1733693255306,1.82,235.4,235.34,6.62492821]
[1733693255603,6.62492821,235.43,235.36,6.62492821]
[1733693255803,1.82,235.42,235.36,6.62492821]
[1733693256204,1.82,235.42,235.37,2.1231]
[1733693256404,1.82,235.42,235.4,6.62492821]
[1733693256602,1.82,235.45,235.4,6.62492821]
[1733693257301,1.82,235.45,235.42,6.62492821]
[1733693257901,2.1232324,235.49,235.42,6.62492821]
[1733693258095,2.1232324,235.49,235.42,8.74762821]
[1733693258096,1.82,235.48,235.42,8.74762821]
[1733693258906,1.82,235.48,235.42,6.62492821]
[1733693259300,1.82,235.48,235.44,6.62492821]
[1733693261002,1.82,235.48,235.36,1.8017]
[1733693261201,8.44492821,235.48,235.42,6.62492821]
[1733693263805,1.82,235.49,235.44,6.62492821]
[1733693264205,1.82,235.5,235.46,6.62492821]
[1733693264808,1.82,235.5,235.44,8.32522821]
[1733693265007,8.44492821,235.5,235.44,8.32522821]
[1733693265310,6.62492821,235.5,235.44,10.44772821]
[1733693265507,6.62492821,235.48,235.44,1.7003]
[1733693266607,2.122,235.5,235.44,1.7003]
[1733693266806,6.62492821,235.49,235.44,1.7003]
[1733693268011,1.82,235.51,235.44,3.8228]
[1733693268206,8.44492821,235.51,235.44,1.7003]
[1733693268407,6.62492821,235.49,235.44,1.7003]
[1733693269513,3.9419,235.51,235.44,1.7003]
[1733693269715,6.62492821,235.49,235.44,1.7003]
[1733693271610,3.9418,235.52,235.45,6.62492821]
[1733693271814,1.82,235.52,235.45,6.62492821]
[1733693272315,2.1219,235.51,235.45,6.62492821]
[1733693275414,2.122,235.5,235.45,6.62492821]
[1733693279816,2.122,235.5,235.44,1.7003]
[1733693280018,2.1221,235.49,235.44,1.7003]
[1733693280317,1.82,235.53,235.45,8.74732821]
[1733693280516,8.44492821,235.53,235.45,10.47462821]
[1733693281117,6.62492821,235.49,235.45,1.7273]
[1733693281714,6.62492821,235.51,235.45,1.7273]
[1733693282321,2.1221,235.49,235.45,1.7273]
[1733693284422,1.82,235.53,235.46,6.62492821]
[1733693284624,1.82,235.53,235.48,6.62492821]
[1733693285722,2.1218,235.52,235.48,6.62492821]
[1733693290425,2.1216,235.55,235.5,6.62492821]
[1733693291128,2.1216,235.55,235.49,2.1221]
[1733693291129,19.1083,235.79,235.52,6.62492821]
[1733693291425,6.62492821,235.62,235.5,1.82]
[1733693291628,6.62492821,235.6,235.55,6.62492821]
[1733693292724,2.1212,235.59,235.55,6.62492821]
[1733693292929,1.82,235.62,235.55,6.62492821]
[1733693293130,1.82,235.62,235.57,6.62492821]
[1733693293527,4.2396,235.75,235.57,6.62492821]
[1733693293834,6.62492821,235.64,235.57,6.62492821]
[1733693294041,8.44492821,235.64,235.57,6.62492821]
[1733693294332,8.44492821,235.64,235.56,2.1214]
[1733693294732,2.1209,235.63,235.57,6.62492821]
[1733693299929,6.62492821,235.62,235.51,1.7334]
[1733693300136,6.62492821,235.6,235.53,6.62492821]
[1733693300339,6.62492821,235.6,235.54,3.01020034]
[1733693300535,6.62492821,235.6,235.55,3.01020034]
[1733693300736,6.62492821,235.6,235.53,6.62492821]
[1733693301235,2.121,235.61,235.55,6.62492821]
[1733693302731,8.44492821,235.64,235.57,8.74622821]
[1733693302931,8.44492821,235.64,235.57,6.62492821]
[1733693303132,8.44492821,235.64,235.5,1.82]
[1733693303333,1.82,235.64,235.57,6.62492821]
[1733693303533,8.44492821,235.64,235.57,6.62492821]
[1733693304039,8.44492821,235.64,235.5,1.82]
[1733693304241,10.56572821,235.64,235.57,8.74622821]
[1733693306842,8.44492821,235.64,235.57,8.74622821]
[1733693307039,2.1208,235.63,235.57,8.74622821]
[1733693307938,1.82,235.64,235.59,2.1212]
[1733693308148,1.82,235.64,235.59,8.74612821]
[1733693308751,10.56562821,235.64,235.58,2.1213]
[1733693309245,2.1209,235.62,235.57,3.5017]
[1733693309544,1.82,235.64,235.57,1.7436]
[1733693309846,2.1208,235.63,235.57,3.8649]
[1733693312846,2.1209,235.62,235.57,3.8649]
[1733693313949,8.44492821,235.64,235.57,1.7436]
[1733693314242,8.44492821,235.64,235.47,1.2064]
[1733693314243,2.1215,235.56,235.52,6.62492821]
[1733693314651,2.1214,235.57,235.52,6.62492821]
[1733693315538,1.82,235.59,235.54,6.62492821]
[1733693316554,1.82,235.59,235.48,1.7823]
[1733693316747,2.1216,235.55,235.53,6.62492821]
[1733693321846,2.1219,235.51,235.48,1.7823]
[1733693322053,2.1219,235.51,235.48,8.40722821]
[1733693325257,2.1219,235.51,235.5,6.62492821]
[1733693327755,2.1219,235.51,235.48,8.40722821]
[1733693327955,2.1221,235.5,235.48,8.40722821]
[1733693328556,8.44492821,235.54,235.48,1.7823]
[1733693329852,2.1218,235.53,235.48,1.7823]
[1733693330055,8.44492821,235.54,235.48,1.7823]
[1733693330562,2.122,235.5,235.48,1.7823]
[1733693331957,8.44492821,235.54,235.48,1.7823]
[1733693332165,2.1221,235.49,235.47,6.62492821]
[1733693332659,2.1223,235.47,235.42,3.8398]
[1733693332856,2.1223,235.47,235.43,9.64489193]
[1733693333061,2.1223,235.47,235.43,6.62492821]
[1733693333463,2.1224,235.46,235.42,1.7171]
[1733693333660,2.1224,235.46,235.42,8.34202821]
[1733693334560,2.1224,235.46,235.42,10.46472821]
[1733693334763,2.1224,235.46,235.44,6.62492821]
[1733693337667,2.1223,235.47,235.44,6.62492821]
[1733693342176,2.1222,235.48,235.44,6.62492821]
[1733693343678,8.74712821,235.48,235.42,10.46472821]
[1733693348688,2.1223,235.47,235.42,10.46472821]
[1733693351386,2.1223,235.47,235.44,6.62492821]
[1733693352185,2.1223,235.47,235.42,3.8398]
[1733693352486,2.1223,235.47,235.43,6.62492821]
[1733693355889,2.1223,235.47,235.42,1.7171]
[1733693357083,6.62492821,235.48,235.42,1.7171]
[1733693357286,2.1224,235.46,235.42,1.7171]
[1733693359395,2.1224,235.46,235.43,3.02023192]
[1733693359584,2.1224,235.46,235.42,1.7171]
[1733693359790,2.1224,235.46,235.43,3.02023383]
[1733693359989,2.1224,235.46,235.42,1.7171]
[1733693360185,2.1224,235.46,235.43,3.02023369]
[1733693360385,2.1224,235.46,235.44,3.02077863]
[1733693360592,2.1224,235.46,235.42,1.7171]
[1733693360790,2.1224,235.46,235.43,3.02077863]
[1733693360991,2.1224,235.46,235.42,1.7171]
[1733693361194,2.1224,235.46,235.43,3.02086941]
[1733693361489,2.1224,235.46,235.44,3.02086941]
[1733693361694,2.1224,235.46,235.42,1.7171]
[1733693361994,2.1224,235.46,235.43,3.0214595]
[1733693362194,2.1224,235.46,235.42,1.7171]
[1733693362195,2.1224,235.46,235.44,3.02194505]
[1733693362390,2.1224,235.46,235.42,1.7171]
[1733693362587,2.1224,235.46,235.43,3.02197062]
[1733693362791,2.1224,235.46,235.42,1.7171]
[1733693363095,2.1224,235.46,235.43,3.02197062]
[1733693363294,2.1224,235.46,235.44,3.02197062]
[1733693363493,2.1224,235.46,235.42,1.7171]
[1733693363699,2.1224,235.46,235.43,3.02247079]
[1733693363896,2.1224,235.46,235.42,1.7171]
[1733693363897,2.1224,235.46,235.44,3.02247079]
[1733693364096,2.1224,235.46,235.42,1.7171]
[1733693364293,2.1224,235.46,235.43,3.02311786]
[1733693364493,2.1224,235.46,235.42,1.7171]
[1733693364693,2.1224,235.46,235.43,3.02311786]
[1733693364895,2.1224,235.46,235.44,3.02311786]
[1733693365198,2.1224,235.46,235.42,1.7171]
[1733693365400,2.1224,235.46,235.43,3.02386692]
[1733693365593,2.1224,235.46,235.44,3.02386692]
[1733693365897,2.1224,235.46,235.45,3.02386692]
[1733693366599,1.82,235.49,235.45,3.02386692]
[1733693366897,2.1223,235.47,235.43,6.62492821]
[1733693367097,2.1223,235.47,235.44,3.02469339]
[1733693367290,2.1223,235.47,235.45,3.02469339]
[1733693367493,2.1223,235.47,235.43,6.62492821]
[1733693367692,2.1223,235.47,235.44,3.02516306]
[1733693367895,2.1223,235.47,235.45,3.02516306]
[1733693368195,2.1223,235.47,235.43,6.62492821]
[1733693368395,3.4152,235.56,235.44,3.02549549]
[1733693368601,6.62492821,235.51,235.45,3.02549549]
[1733693368903,1.82,235.5,235.43,8.74752821]
[1733693369202,1.82,235.5,235.44,3.02548857]
[1733693369397,1.82,235.5,235.45,3.02548857]
[1733693369596,2.1221,235.49,235.43,8.74752821]
[1733693369796,2.1221,235.49,235.44,3.02602398]
[1733693369998,2.1221,235.49,235.45,3.02602398]
[1733693370198,2.1221,235.49,235.46,3.02655047]
[1733693370395,2.1221,235.49,235.43,8.74752821]
[1733693370593,2.1221,235.49,235.44,7.86898998]
[1733693370797,2.1221,235.49,235.45,3.02653461]
[1733693371000,2.1221,235.49,235.46,3.02653461]
[1733693371198,2.1221,235.49,235.43,8.74752821]
[1733693371602,2.1221,235.49,235.44,7.87061275]
[1733693371803,2.1221,235.49,235.45,3.02715875]
[1733693372099,2.1221,235.49,235.46,3.02715875]
[1733693372401,2.1221,235.49,235.43,8.74752821]
[1733693372604,2.1221,235.49,235.44,7.87238812]
[1733693372798,2.1221,235.49,235.45,3.02784158]
[1733693372999,2.1221,235.49,235.46,3.02784158]
[1733693373195,2.1221,235.49,235.43,8.74752821]
[1733693373401,2.1221,235.49,235.44,9.2395476]
[1733693373605,2.1221,235.49,235.45,3.02875595]
[1733693373801,2.1221,235.49,235.46,3.02875595]
[1733693373999,2.1221,235.49,235.43,8.74752821]
[1733693374302,2.1221,235.49,235.44,9.23957197]
[1733693374500,2.1221,235.49,235.45,7.87476548]
[1733693374698,2.1221,235.49,235.46,3.02875595]
[1733693374894,2.1221,235.49,235.47,3.02875595]
[1733693375099,2.1221,235.49,235.43,6.62492821]
[1733693375297,2.1221,235.49,235.44,9.24349201]
[1733693375498,2.1221,235.49,235.45,9.24349201]
[1733693375699,2.1221,235.49,235.46,3.03001726]
[1733693375901,2.1222,235.48,235.43,6.62492821]
[1733693376099,2.1222,235.48,235.44,9.24349912]
[1733693376305,2.1222,235.48,235.45,3.03002503]
[1733693376602,2.1222,235.48,235.43,6.62492821]
[1733693376603,2.1222,235.48,235.46,3.03002503]
[1733693376803,2.1222,235.48,235.43,6.62492821]
[1733693377001,2.1222,235.48,235.44,9.24586324]
[1733693377195,2.1222,235.48,235.45,7.88115625]
[1733693377509,3.9422,235.49,235.46,3.03079832]
[1733693377803,1.82,235.49,235.47,3.03079832]
[1733693378002,1.82,235.49,235.43,6.62492821]
[1733693378205,1.82,235.49,235.44,9.24791361]
[1733693378405,1.82,235.49,235.43,6.62492821]
[1733693378406,1.82,235.49,235.45,7.88182704]
[1733693378608,2.1222,235.48,235.46,3.03147194]
[1733693378807,2.1222,235.48,235.47,3.03147194]
[1733693381808,2.1222,235.48,235.43,6.62492821]
[1733693382013,2.1222,235.48,235.44,7.88179852]
[1733693382207,2.1222,235.48,235.45,3.03146097]
[1733693382415,2.1222,235.48,235.43,6.62492821]
[1733693382416,2.1222,235.48,235.46,3.03146097]
[1733693382711,8.74712821,235.48,235.47,3.03146097]
[1733693384413,2.1222,235.48,235.47,3.03146097]
[1733693390722,2.122,235.5,235.47,3.03146097]
[1733693390924,2.122,235.5,235.45,6.62492821]
[1733693391115,2.122,235.5,235.46,3.03127334]
[1733693391312,2.122,235.5,235.47,3.03127334]
[1733693391516,2.122,235.5,235.45,6.62492821]
[1733693391714,2.122,235.5,235.46,3.03114429]
[1733693391921,2.122,235.5,235.47,3.03114429]
[1733693392119,2.122,235.5,235.45,6.62492821]
[1733693392413,2.122,235.5,235.46,3.03114999]
[1733693392617,2.122,235.5,235.47,3.03114999]
[1733693392821,8.44492821,235.52,235.47,3.03114999]
[1733693392822,2.1221,235.49,235.47,3.03114999]
[1733693393017,2.1221,235.49,235.48,3.03114999]
[1733693394622,2.1221,235.49,235.43,8.74752821]
[1733693394814,6.62492821,235.48,235.44,9.24476134]
[1733693395018,8.74712821,235.48,235.45,7.87930473]
[1733693395325,8.74712821,235.48,235.46,3.03050182]
[1733693395524,8.74712821,235.48,235.47,3.03050182]
[1733693401825,2.1223,235.47,235.42,8.34202821]
[1733693402029,2.1223,235.47,235.43,17.1858832]
[1733693402226,2.1223,235.47,235.44,15.30419301]
[1733693402431,2.1223,235.47,235.45,9.24375831]
[1733693402622,2.1223,235.47,235.46,7.87856511]
[1733693405235,2.1223,235.47,235.42,8.34202821]
[1733693405432,2.1223,235.47,235.43,17.48899879]
[1733693405734,2.1223,235.47,235.44,15.30405822]
[1733693405930,2.1223,235.47,235.45,7.87841073]
[1733693406236,2.1223,235.47,235.46,3.03015797]
[1733693409545,2.1221,235.5,235.46,7.87837629]
[1733693409833,2.1221,235.5,235.47,7.87837629]
[1733693410042,2.1221,235.5,235.48,3.03015797]
[1733693410233,2.1221,235.5,235.49,3.03015797]
[1733693410840,1.82,235.52,235.49,3.03015797]
[1733693411142,2.1219,235.51,235.45,6.62492821]
[1733693411343,2.1219,235.51,235.46,9.24227336]
[1733693411639,2.1219,235.51,235.47,3.02964791]
[1733693411842,2.1219,235.51,235.48,3.02964791]
[1733693412040,2.1219,235.51,235.49,3.02964791]
[1733693412240,2.1219,235.51,235.45,6.62492821]
[1733693412441,2.1219,235.51,235.44,2.1225]
[1733693412643,2.1219,235.51,235.46,4.394601]
[1733693412851,2.1219,235.51,235.46,7.87656194]
[1733693413140,2.1219,235.51,235.47,9.24170773]